bitfinex/quotes_SOLUSD_20250728
["timestamp","ask_amount","ask_price","bid_price","bid_amount"]
[1753721987274,13.07838598,187.04,187.03,1e-08]
[1753721987547,0.1261702,187.04,187.03,6.48606429]
[1753721988137,3.72595926,187.04,187.03,6.48606429]
[1753721988338,3.59978906,187.04,187.03,6.48606429]
[1753721988558,3.72595926,187.04,187.03,6.48606429]
[1753721988929,9.07240921,187.04,187.03,6.48606429]
[1753721989323,5.47262015,187.04,187.03,6.48606429]
[1753721989524,5.34636848,187.05,187.03,6.48606429]
[1753721989732,43.22636848,187.05,187.03,6.48606429]
[1753721991135,43.88636848,187.05,187.03,1e-08]
[1753721991335,3.59878135,187.04,187.03,1e-08]
[1753721991539,4.38495155,187.04,187.03,1e-08]
[1753721992640,6.13262015,187.04,187.03,1e-08]
[1753721993890,16.50143628,187.04,187.03,1e-08]
[1753721994848,33.28612025,187.04,187.03,1e-08]
[1753721995239,37.28336554,187.04,187.03,1e-08]
[1753721996759,33.28612025,187.04,187.03,1e-08]
[1753721998273,37.28219045,187.04,187.03,1e-08]
[1753721998770,42.78468397,187.02,187.01,1e-08]
[1753721998974,97.36141144,187.02,187.01,1e-08]
[1753721999153,97.36001788,187.02,187.01,1e-08]
[1753721999358,98.02001788,187.02,187.01,1e-08]
[1753721999760,98.30434102,187.02,187.01,1e-08]
[1753722000177,103.65136272,187.02,187.01,1e-08]
[1753722000355,103.52519252,187.02,187.01,1e-08]
[1753722000679,17.06900711,187.01,187.0,1e-08]
[1753722000844,31.27338792,187.01,187.0,1e-08]
[1753722001046,16.78468397,186.97,186.87,6.48606428]
[1753722001355,0.28432314,186.95,186.86,1.588]
[1753722001543,0.1261702,186.95,186.87,17.37981534]
[1753722001748,37.88,186.95,186.93,6.48606428]
[1753722001971,37.88,186.95,186.93,0.06]
[1753722002143,37.88,186.95,186.91,6.48606428]
[1753722002350,37.88,186.95,186.92,0.06]
[1753722002657,37.88,186.96,186.94,6.48606428]
[1753722002861,37.88,186.98,186.95,6.54606428]
[1753722003568,37.88,186.98,186.96,6.48606428]
[1753722003883,43.22828138,186.98,186.95,6.48606428]
[1753722004080,43.22828138,186.98,186.95,6.54606428]
[1753722004382,5.34828138,186.98,186.96,6.48606428]
[1753722004885,5.47445158,186.98,186.97,6.48606428]
[1753722005050,5.47445158,186.98,186.96,6.48606428]
[1753722005673,5.34765201,187.0,186.97,6.48606428]
[1753722005877,0.1261702,187.02,186.99,6.48606428]
[1753722006053,0.1261702,187.02,187.01,6.48606428]
[1753722006452,0.1261702,187.02,186.95,2.15860238]
[1753722006654,0.03,187.05,187.01,6.48606428]
[1753722006884,0.03,187.05,187.04,6.48606428]
[1753722007256,0.03,187.08,187.04,8.07746428]
[1753722007574,0.03,187.08,187.07,11.83165683]
[1753722007779,0.03,187.1,187.09,6.48606428]
[1753722008084,0.03,187.1,187.09,12.97212856]
[1753722008279,0.03,187.1,187.09,6.48606428]
[1753722008487,0.03,187.1,187.09,29.75681253]
[1753722008673,0.03,187.1,187.09,6.48606428]
[1753722010785,0.03,187.1,187.09,36.56885102]
[1753722011785,49.26502122,187.1,187.01,6.127]
[1753722011976,10.56885102,187.05,187.01,6.127]
[1753722012802,10.56885102,187.05,187.0,17.56488773]
[1753722012803,15.9157944,187.03,186.97,10.56885102]
[1753722012968,10.56885102,187.02,186.97,15.91730238]
[1753722013168,10.56885102,187.02,187.0,26.0]
[1753722013469,5.34617974,187.05,187.0,36.56885102]
[1753722013679,5.3458702,187.07,187.0,26.0]
[1753722013872,10.56885102,187.06,187.01,10.56885102]
[1753722014078,11.24885102,187.06,187.01,10.56885102]
[1753722014277,11.37502122,187.06,187.0,10.56885102]
[1753722014498,10.56885102,187.05,187.0,10.56885102]
[1753722014688,11.24885102,187.05,187.0,10.56885102]
[1753722014887,11.24885102,187.04,186.98,36.56885102]
[1753722015192,0.68,187.04,186.98,26.0]
[1753722015392,0.68,187.04,187.0,10.56885102]
[1753722015594,0.68,187.04,186.99,10.56885102]
[1753722015768,5.34616412,187.05,187.0,10.56885102]
[1753722015974,5.47233432,187.05,187.0,10.56885102]
[1753722016299,0.1261702,187.05,187.02,10.56885102]
[1753722017190,0.1261702,187.05,187.03,10.56885102]
[1753722017394,5.4712016,187.09,187.04,10.56885102]
[1753722017573,0.68,187.08,187.04,10.56885102]
[1753722017771,0.1261702,187.07,187.04,10.56885102]
[1753722017975,0.8061702,187.07,187.04,10.56885102]
[1753722018678,6.02587832,187.06,187.02,36.56885102]
[1753722019364,6.02587832,187.06,187.04,10.56885102]
[1753722019806,0.1261702,187.07,187.02,26.0]
[1753722020112,0.1561702,187.09,187.06,10.56885102]
[1753722020330,0.03,187.09,187.08,10.56885102]
[1753722020715,0.03,187.09,187.08,16.44868852]
[1753722021019,0.03,187.11,187.08,43.80222351]
[1753722021229,0.03,187.12,187.11,42.78468397]
[1753722021402,0.03,187.12,187.11,102.31683098]
[1753722021785,0.03,187.12,187.11,91.74797996]
[1753722021985,0.03,187.12,187.11,74.96329599]
[1753722022436,0.71,187.12,187.1,26.0]
[1753722022588,0.68,187.11,187.1,26.0]
[1753722022789,0.03,187.12,187.1,36.56885102]
[1753722022991,0.03,187.12,187.11,10.56885102]
[1753722023821,0.03,187.12,187.1,36.56885102]
[1753722024219,0.71,187.12,187.1,26.0]
[1753722024522,0.03,187.12,187.1,36.56885102]
[1753722025000,0.03,187.12,187.11,10.56885102]
[1753722025820,0.03,187.12,187.11,48.42885102]
[1753722026020,0.03,187.12,187.11,48.96329599]
[1753722026891,0.03,187.12,187.11,54.30774577]
[1753722028105,0.03,187.12,187.11,11.10329599]
[1753722028425,11.27885102,187.12,187.1,37.86]
[1753722028597,0.68,187.11,187.1,37.86]
[1753722029497,0.68,187.11,187.07,36.56885102]
[1753722029732,0.68,187.1,187.08,37.84]
[1753722030102,0.71,187.12,187.08,48.40885102]
[1753722031622,0.03,187.12,187.09,10.56885102]
[1753722031995,0.75,187.12,187.09,10.56885102]
[1753722032227,0.75,187.12,187.1,10.56885102]
[1753722032441,0.72,187.11,187.07,36.56885102]
[1753722032639,10.56885102,187.09,187.04,10.56885102]
[1753722032934,0.8461702,187.11,187.05,37.84]
[1753722032935,0.72,187.08,187.05,37.84]
[1753722033110,15.94301857,187.12,187.06,10.56885102]
[1753722033311,0.72,187.1,187.06,10.56885102]
[1753722033512,0.72,187.09,187.06,10.56885102]
[1753722035743,0.1261702,187.11,187.07,10.56885102]
[1753722035895,6.22033775,187.12,187.08,37.84]
[1753722036095,0.75,187.12,187.1,10.56885102]
[1753722036331,0.03,187.12,187.11,10.56885102]
[1753722036525,0.03,187.12,187.11,37.84]
[1753722037199,0.03,187.12,187.11,48.40885102]
[1753722037843,0.03,187.12,187.11,53.7533008]
[1753722039507,0.03,187.12,187.11,48.40885102]
[1753722039713,0.75,187.12,187.11,48.40885102]
[1753722039909,0.03,187.12,187.11,48.40885102]
[1753722040121,0.75,187.12,187.11,37.84]
[1753722040529,0.75,187.12,187.1,10.56885102]
[1753722041041,0.75,187.12,187.11,37.84]
[1753722041406,0.03,187.12,187.11,48.40885102]
[1753722042922,0.03,187.12,187.11,54.28774577]
[1753722043302,0.03,187.12,187.11,89.22358076]
[1753722043502,0.03,187.12,187.11,89.5079039]
[1753722043708,0.03,187.12,187.11,40.81472974]
[1753722043947,0.03,187.12,187.11,78.65472974]
[1753722044113,0.03,187.12,187.11,78.12028477]
[1753722044939,0.03,187.12,187.11,53.7533008]
[1753722045301,0.03,187.12,187.11,54.28774577]
[1753722047229,0.03,187.12,187.11,48.40885102]
[1753722048515,0.75,187.12,187.11,37.84]
[1753722049231,0.75,187.12,187.11,48.40885102]
[1753722049621,0.03,187.12,187.11,48.40885102]
[1753722051344,0.75,187.12,187.11,37.84]
[1753722052219,0.03,187.12,187.11,37.84]
[1753722052612,0.75,187.12,187.11,48.40885102]
[1753722052815,0.03,187.12,187.11,48.94329599]
[1753722053747,0.03,187.12,187.11,54.28774577]
[1753722053915,8.79502122,187.19,187.11,54.28774577]
[1753722054114,3.58049993,187.19,187.13,10.56885102]
[1753722054454,3.61049993,187.2,187.17,10.56885102]
[1753722054612,0.03,187.2,187.18,37.84]
[1753722055042,0.03,187.2,187.19,37.84]
[1753722055043,10.59885102,187.2,187.19,37.84]
[1753722055213,0.03,187.2,187.18,37.84]
[1753722056030,0.72,187.19,187.18,37.84]
[1753722056851,6.06216571,187.19,187.18,37.84]
[1753722057420,0.72,187.19,187.18,37.84]
[1753722057642,6.06216571,187.19,187.18,37.84]
[1753722058824,0.72,187.19,187.18,37.84]
[1753722059229,0.03,187.2,187.18,48.40885102]
[1753722059448,0.03,187.2,187.19,10.56885102]
[1753722060325,0.75,187.2,187.18,48.40885102]
[1753722060525,0.75,187.2,187.19,10.56885102]
[1753722061146,0.03,187.2,187.19,10.56885102]
[1753722062420,0.03,187.2,187.18,48.40885102]
[1753722062647,0.66,187.19,187.18,48.40885102]
[1753722063035,0.03,187.2,187.18,48.40885102]
[1753722063230,0.69,187.2,187.18,48.40885102]
[1753722063431,0.03,187.2,187.19,10.56885102]
[1753722064438,0.69,187.2,187.18,48.40885102]
[1753722064639,0.03,187.2,187.18,48.40885102]
[1753722065521,0.03,187.2,187.19,10.56885102]
[1753722066533,0.03,187.2,187.19,17.1652333]
[1753722069248,0.03,187.2,187.19,35.79504041]
[1753722072629,0.03,187.22,187.21,16.78468397]
[1753722072934,0.2,187.25,187.24,17.06900711]
[1753722073147,0.2,187.25,187.24,65.99193204]
[1753722073350,0.2,187.25,187.24,66.71193204]
[1753722073761,0.03,187.29,187.27,42.78468397]
[1753722073953,0.03,187.29,187.27,93.57604648]
[1753722074148,0.03,187.29,187.27,94.29604648]
[1753722074845,0.03,187.29,187.27,99.63593007]
[1753722078370,0.03,187.29,187.28,0.28432314]
[1753722078573,0.03,187.29,187.28,10.85317416]
[1753722079065,0.03,187.29,187.28,16.19277262]
[1753722080867,0.03,187.29,187.28,27.35353499]
[1753722081180,0.03,187.29,187.28,32.69313345]
[1753722082748,0.03,187.29,187.28,28.59569972]
[1753722084475,0.03,187.29,187.28,35.06711701]
[1753722084639,0.03,187.29,187.28,35.78711701]
[1753722085865,0.03,187.29,187.28,35.06711701]
[1753722086662,0.03,187.29,187.28,28.59569972]
[1753722086869,0.69,187.29,187.28,44.27141729]
[1753722088350,0.69,187.29,187.27,0.06]
[1753722088551,6.47141729,187.28,187.27,0.06]
[1753722088861,0.69,187.29,187.27,37.86]
[1753722089060,0.66,187.28,187.27,37.86]
[1753722089864,0.03,187.29,187.27,44.33141729]
[1753722090176,0.69,187.29,187.28,6.47141729]
[1753722091964,0.69,187.29,187.27,44.33141729]
[1753722092153,0.71,187.28,187.27,44.33141729]
[1753722093777,6.04959846,187.28,187.27,0.06]
[1753722093950,0.71,187.28,187.27,37.86]
[1753722095973,6.04959846,187.28,187.27,0.06]
[1753722096181,14.11191575,187.28,187.27,0.06]
[1753722097151,7.64049846,187.28,187.27,0.06]
[1753722097377,14.11191575,187.28,187.27,0.06]
[1753722097950,14.39623889,187.28,187.27,0.06]
[1753722098154,26.0,187.25,187.19,0.06]
[1753722098382,6.47141729,187.2,187.19,0.06]
[1753722098687,8.09361729,187.2,187.19,0.06]
[1753722098890,8.80361729,187.2,187.19,0.06]
[1753722099880,14.14549763,187.2,187.19,0.06]
[1753722102157,0.71,187.22,187.19,44.33141729]
[1753722102565,0.71,187.21,187.19,44.33141729]
[1753722102777,0.71,187.21,187.19,37.86]
[1753722103463,0.71,187.21,187.19,44.33141729]
[1753722103663,0.71,187.2,187.19,37.86]
[1753722103857,0.71,187.2,187.19,0.06]
[1753722104057,7.18141729,187.2,187.19,0.06]
[1753722104983,6.47141729,187.18,187.15,37.86]
[1753722105165,6.47141729,187.16,187.15,37.86]
[1753722105479,12.5244393,187.16,187.15,37.86]
[1753722106780,16.6226,187.16,187.15,37.86]
[1753722107586,16.6226,187.16,187.15,0.06]
[1753722107800,16.90692314,187.16,187.15,0.06]
[1753722109491,16.90692314,187.16,187.11,0.06]
[1753722109492,15.91374216,187.12,187.11,0.06]
[1753722110183,16.62374216,187.12,187.11,0.06]
[1753722112890,0.28432314,187.1,187.08,0.2]
[1753722113193,11.56390113,187.09,187.08,0.2]
[1753722113658,16.90892224,187.09,187.08,0.2]
[1753722117970,54.72892224,187.09,187.08,0.2]
[1753722118596,0.28432314,187.08,187.07,0.06]
[1753722118770,11.56390113,187.08,187.07,0.06]
[1753722119894,16.90920795,187.08,187.07,0.06]
[1753722120574,71.53389192,187.08,187.07,1e-08]
[1753722121387,31.34509601,187.09,187.07,1e-08]
[1753722121903,10.56957799,187.08,187.07,1e-08]
[1753722122274,15.91488481,187.08,187.07,1e-08]
[1753722122491,16.60488481,187.08,187.07,1e-08]
[1753722123383,71.51389192,187.08,187.07,1e-08]
[1753722124271,17.06900711,187.07,187.06,1e-08]
[1753722124482,42.78468397,187.01,187.0,0.06]
[1753722124796,17.06900711,187.0,186.92,0.1]
[1753722124999,10.56957799,186.93,186.92,0.1]
[1753722125214,48.40957799,186.93,186.92,1e-08]
[1753722125420,66.1685851,186.93,186.92,1e-08]
[1753722125584,17.06900711,186.92,186.88,0.2]
[1753722125777,21.42347912,186.89,186.88,0.2]
[1753722125980,54.0446422,186.89,186.88,0.2]
[1753722126297,53.76031906,186.89,186.88,0.2]
[1753722126523,65.30422019,186.89,186.88,0.2]
[1753722128590,17.06900711,186.88,186.87,0.1]
[1753722128897,28.3285851,186.88,186.87,0.1]
[1753722129608,28.3285851,186.88,186.87,1e-08]
[1753722130515,37.57686505,186.88,186.87,1e-08]
[1753722130683,9.24827995,186.88,186.87,1e-08]
[1753722130892,41.75725256,186.88,186.87,1e-08]
[1753722131114,10.56957799,186.88,186.87,0.68000001]
[1753722131292,10.56957799,186.88,186.87,1e-08]
[1753722131700,28.3285851,186.88,186.87,1e-08]
[1753722131911,32.22681526,186.88,186.87,1e-08]
[1753722132212,42.60796226,186.88,186.87,1e-08]
[1753722132412,43.06900711,186.85,186.84,0.06]
[1753722132595,91.5185851,186.85,186.84,0.06]
[1753722132819,74.44957799,186.85,186.84,0.06]
[1753722133207,15.92037768,186.89,186.84,0.74]
[1753722133420,37.88,186.88,186.85,0.68]
[1753722133733,10.56957799,186.93,186.87,10.56957799]
[1753722133901,48.48957799,186.93,186.88,10.56957799]
[1753722134101,48.48957799,186.93,186.86,0.53516001]
[1753722134102,48.48957799,186.93,186.89,0.68]
[1753722134305,53.8393184,186.93,186.9,0.68]
[1753722134528,10.56957799,186.93,186.87,15.92078557]
[1753722134729,10.56957799,186.95,186.91,0.68]
[1753722134916,10.56957799,186.95,186.92,0.68]
[1753722135314,10.56957799,186.94,186.92,0.68]
[1753722135513,43.26896498,186.96,186.92,0.68]
[1753722135715,14.4634856,186.95,186.92,0.68]
[1753722135932,10.56957799,186.93,186.89,0.68]
[1753722136135,0.69,186.95,186.89,0.68]
[1753722136136,10.56957799,186.92,186.89,0.68]
[1753722138145,16.60962146,186.92,186.87,26.0]
[1753722138457,15.91962146,186.92,186.88,0.68]
[1753722139947,53.81920889,186.93,186.87,36.56957799]
[1753722140115,0.28432314,186.98,186.89,0.68]
[1753722140335,3.90097504,186.97,186.92,10.56957799]
[1753722140539,3.90097504,186.97,186.93,0.68]
[1753722140727,48.46957799,186.98,186.94,0.68]
[1753722141126,37.9,186.98,186.95,0.68]
[1753722141326,5.34740255,187.01,186.96,10.56957799]
[1753722141537,11.25957799,187.0,186.93,2.05825961]
[1753722141751,6.03781877,187.0,186.94,10.56957799]
[1753722141956,15.91739676,187.0,186.95,11.24957799]
[1753722142170,10.56957799,187.01,186.96,0.68]
[1753722142367,3.52705051,187.01,186.97,0.68]
[1753722142669,14.0966285,187.01,186.97,0.68]
[1753722142849,10.56957799,187.0,186.94,10.56957799]
[1753722143362,10.56957799,187.0,186.94,11.24957799]
[1753722143764,5.34787956,186.99,186.94,11.24957799]
[1753722143964,5.34787956,186.99,186.95,0.68]
[1753722144138,15.91724052,187.0,186.96,0.68]
[1753722144748,15.91724052,187.0,186.94,11.24957799]
[1753722145354,15.91758761,186.99,186.94,11.24957799]
[1753722145550,5.34800962,186.99,186.94,11.24957799]
[1753722145952,10.56957799,187.0,186.95,0.68]
[1753722146136,15.91731687,187.0,186.96,0.68]
[1753722146338,3.92330944,186.99,186.96,0.68]
[1753722146543,15.91695744,187.01,186.97,0.68]
[1753722146740,10.56957799,186.99,186.94,11.24957799]
[1753722147077,10.56957799,186.96,186.91,89.48]
[1753722147245,15.91832378,186.96,186.91,0.68]
[1753722147442,10.56957799,186.96,186.91,11.24957799]
[1753722147744,48.44957799,186.98,186.92,11.24957799]
[1753722148370,3.93179192,186.97,186.94,10.56957799]
[1753722148564,0.03,187.0,186.96,10.56957799]
[1753722148748,3.9623558,187.0,186.96,10.56957799]
[1753722148954,3.9623558,187.0,186.97,0.68]
[1753722149250,3.9623558,187.0,186.97,11.24957799]
[1753722149471,9.28027891,186.99,186.93,0.53495961]
[1753722149666,14.50193379,186.98,186.92,10.56957799]
[1753722149966,3.93549205,186.97,186.93,10.56957799]
[1753722150184,3.93549205,186.97,186.94,0.68]
[1753722150463,10.56957799,186.98,186.94,0.68]
[1753722150641,3.93927862,186.97,186.94,0.68]
[1753722150984,15.9175011,186.99,186.95,0.68]
[1753722151154,7.87901594,186.98,186.95,0.68]
[1753722151473,3.93950797,186.97,186.96,11.24957799]
[1753722151634,10.59957799,187.0,186.93,5.88447434]
[1753722151835,7.88904142,186.99,186.94,11.24957799]
[1753722152072,3.94546987,186.98,186.94,11.24957799]
[1753722152440,3.94546987,186.98,186.94,0.68]
[1753722152750,15.94721323,187.0,186.94,32.02914691]
[1753722153148,0.03,187.0,186.95,0.68]
[1753722153366,0.03,187.0,186.96,0.68]
[1753722153573,0.03,187.0,186.97,10.56957799]
[1753722153748,0.03,187.0,186.99,36.56957799]
[1753722153949,0.03,187.04,187.01,26.0]
[1753722154149,0.03,187.04,187.03,10.56957799]
[1753722154468,3.98523763,187.04,187.03,10.56957799]
[1753722154772,0.03,187.04,187.03,160.40532091]
[1753722155075,0.03,187.04,187.03,161.96062091]
[1753722155461,0.03,187.04,187.03,165.54487799]
[1753722155968,0.03,187.04,187.03,164.86487799]
[1753722156269,0.03,187.04,187.03,65.4953]
[1753722156466,0.03,187.04,187.03,63.94]
[1753722156649,0.03,187.04,186.99,48.52957799]
[1753722156848,6.05653379,187.04,186.99,74.52957799]
[1753722157047,15.206546,187.03,186.98,1.6114]
[1753722157269,11.24957799,187.03,186.98,2.2914]
[1753722157468,10.56957799,187.03,186.98,2.2914]
[1753722157848,14.52846665,187.02,186.98,1.6114]
[1753722158048,5.37653379,187.04,186.98,7.63956475]
[1753722158248,3.95936262,187.03,187.0,10.56957799]
[1753722158941,9.30610503,187.03,186.98,12.18097799]
[1753722159147,6.02674241,187.03,186.98,12.18097799]
[1753722159369,11.24957799,187.02,186.98,1.6114]
[1753722159565,0.68,187.02,186.97,48.52957799]
[1753722160262,0.68,187.01,186.96,10.56957799]
[1753722160468,0.68,187.0,186.96,10.56957799]
[1753722160873,6.02791587,186.99,186.95,26.0]
[1753722161246,5.34791587,186.99,186.95,26.0]
[1753722162350,15.9172439,187.0,186.95,26.0]
[1753722162552,16.5972439,187.0,186.95,26.0]
[1753722162864,0.03,187.04,186.99,15.91717627]
[1753722163069,0.03,187.04,187.02,10.56957799]
[1753722163243,0.03,187.04,187.01,10.56957799]
[1753722163448,0.03,187.04,187.02,10.56957799]
[1753722164169,0.03,187.04,187.03,11.78425157]
[1753722164361,0.03,187.04,187.03,11.10425157]
[1753722164871,0.03,187.04,187.03,16.45098738]
[1753722165058,0.03,187.04,187.03,72.15999449]
[1753722165245,0.03,187.04,187.03,73.70139449]
[1753722166248,0.03,187.04,187.03,68.07033554]
[1753722166645,0.03,187.04,187.03,73.41707135]
[1753722168268,0.03,187.04,187.03,62.84749336]
[1753722168458,0.03,187.04,187.03,73.41707135]
[1753722169254,0.03,187.04,187.03,72.73707135]
[1753722170174,0.03,187.04,187.03,49.06425157]
[1753722170365,0.03,187.04,187.03,48.52957799]
[1753722170867,0.71,187.04,187.02,10.56957799]
[1753722171075,0.71,187.04,187.02,48.48957799]
[1753722171377,0.03,187.04,187.02,48.48957799]
[1753722171954,0.03,187.04,187.03,10.56957799]
[1753722172386,0.03,187.04,187.03,28.56893554]
[1753722172594,0.03,187.06,187.05,0.28432314]
[1753722172757,0.03,187.06,187.05,75.30851754]
[1753722172957,0.03,187.06,187.05,75.98851754]
[1753722173183,0.03,187.08,187.05,66.77320151]
[1753722173385,0.03,187.08,187.07,59.37306196]
[1753722173687,0.03,187.08,187.07,97.86762121]
[1753722173865,0.03,187.08,187.07,99.40832121]
[1753722174063,0.03,187.08,187.07,100.08832121]
[1753722174273,0.03,187.08,187.07,105.43391376]
[1753722174491,0.03,187.08,187.07,105.18367765]
[1753722174688,0.03,187.08,187.07,67.22367765]
[1753722174860,0.03,187.08,187.07,105.18367765]
[1753722175175,0.03,187.08,187.07,96.65985451]
[1753722175377,0.03,187.08,187.07,97.19441376]
[1753722176595,0.71,187.08,187.07,26.0]
[1753722176769,0.71,187.08,187.07,63.94]
[1753722178569,0.71,187.08,187.03,10.56957799]
[1753722178766,0.68,187.07,187.03,10.56957799]
[1753722178972,0.68,187.06,187.04,37.94]
[1753722179182,0.68,187.05,187.04,37.94]
[1753722179696,6.05539155,187.08,187.03,48.50957799]
[1753722179865,0.03,187.08,187.06,10.56957799]
[1753722180303,0.71,187.08,187.05,37.94]
[1753722180603,0.71,187.08,187.03,37.96]
[1753722180604,11.24957799,187.07,187.03,37.96]
[1753722180898,11.24957799,187.06,187.03,37.96]
[1753722181101,11.27957799,187.05,187.01,37.96]
[1753722181303,11.27957799,187.04,187.0,37.96]
[1753722181507,10.56957799,187.04,187.0,37.96]
[1753722181677,0.71,187.03,187.0,37.96]
[1753722181885,6.05724481,187.02,186.98,37.98]
[1753722182084,10.56957799,187.0,186.95,10.56957799]
[1753722182284,0.71,186.99,186.96,37.98]
[1753722182486,10.56957799,187.02,186.97,10.56957799]
[1753722182701,14.9212551,187.07,186.98,10.56957799]
[1753722182873,10.56957799,187.04,186.98,37.98]
[1753722183072,11.27957799,187.03,186.98,37.98]
[1753722183292,10.56957799,187.03,186.98,37.98]
[1753722183499,11.27957799,187.02,186.98,37.98]
[1753722183704,10.56957799,187.0,186.96,37.98]
[1753722183994,10.56957799,186.98,186.95,37.98]
[1753722184186,0.71,186.97,186.95,37.98]
[1753722184772,11.27957799,186.96,186.9,16.78468397]
[1753722184993,11.27957799,186.95,186.89,48.56957799]
[1753722185299,5.34796014,186.99,186.91,10.56957799]
[1753722185505,0.71,187.01,186.98,10.56957799]
[1753722185680,16.69697799,187.05,187.0,10.56957799]
[1753722185881,17.40697799,187.05,187.0,10.56957799]
[1753722186185,77.39352437,187.08,187.0,10.56957799]
[1753722186186,38.74,187.08,187.03,10.56957799]
[1753722186374,0.74,187.08,187.05,10.56957799]
[1753722186576,0.71,187.07,187.03,10.56957799]
[1753722186781,0.71,187.06,187.03,10.56957799]
[1753722187177,0.03,187.08,187.04,10.56957799]
[1753722187503,0.03,187.08,187.03,10.56957799]
[1753722188112,0.71,187.07,187.03,10.56957799]
[1753722189209,0.03,187.08,187.04,10.56957799]
[1753722189380,0.74,187.08,187.04,10.56957799]
[1753722189770,0.03,187.08,187.05,10.56957799]
[1753722189971,0.03,187.08,187.04,10.56957799]
[1753722190778,0.74,187.08,187.04,10.56957799]
[1753722191680,0.74,187.08,187.03,5.88129263]
[1753722191681,0.74,187.08,187.05,10.56957799]
[1753722192290,0.03,187.12,187.11,42.78468397]
[1753722192491,3.57190092,187.18,187.14,26.0]
[1753722192694,0.03,187.19,187.17,10.56957799]
[1753722192937,0.03,187.19,187.15,39.29433075]
[1753722192938,0.03,187.19,187.18,10.56957799]
[1753722194081,0.03,187.19,187.18,71.45671307]
[1753722194290,0.03,187.19,187.18,72.27528132]
[1753722197415,0.03,187.19,187.18,34.17528132]
[1753722197598,0.03,187.19,187.18,72.25528132]
[1753722198292,0.03,187.19,187.18,71.59528132]
[1753722198697,0.03,187.19,187.18,49.1838231]
[1753722198899,0.03,187.19,187.18,48.64957799]
[1753722200022,0.03,187.19,187.18,49.8438231]
[1753722200589,0.03,187.19,187.18,72.25528132]
[1753722204604,0.03,187.19,187.18,78.60258132]
[1753722206598,0.03,187.19,187.18,33.23095818]
[1753722206835,0.74,187.19,187.18,38.02]
[1753722209250,0.74,187.19,187.13,15.91345159]
[1753722209251,16.6517437,187.19,187.13,15.91345159]
[1753722209408,11.27957799,187.18,187.14,38.02]
[1753722209606,0.71,187.17,187.14,38.02]
[1753722210836,0.71,187.17,187.14,48.58957799]
[1753722211217,0.71,187.17,187.14,53.93315624]
[1753722212134,0.03,187.19,187.16,10.56957799]
[1753722212434,0.03,187.19,187.18,27.35426196]
[1753722212610,0.03,187.19,187.17,49.12385164]
[1753722212937,0.03,187.19,187.17,38.55427365]
[1753722213116,0.71,187.19,187.17,38.55427365]
[1753722213312,0.68,187.18,187.17,38.02]
[1753722213516,11.24957799,187.18,187.17,38.04]
[1753722213708,0.68,187.18,187.16,38.04]
[1753722215310,0.03,187.19,187.16,48.60957799]
[1753722215720,0.03,187.19,187.16,53.95253231]
[1753722216520,0.03,187.19,187.17,10.56957799]
[1753722216742,0.03,187.19,187.18,70.71671307]
[1753722216928,0.03,187.19,187.18,71.66103621]
[1753722218014,0.03,187.23,187.18,71.66103621]
[1753722218217,0.03,187.23,187.22,53.6385851]
[1753722218452,0.03,187.23,187.22,92.19271606]
[1753722218833,0.03,187.23,187.22,91.90839292]
[1753722219177,0.03,187.23,187.22,97.2497026]
[1753722219332,0.03,187.23,187.22,98.19402574]
[1753722220415,0.03,187.23,187.22,97.2497026]
[1753722221834,0.03,187.23,187.22,37.10370895]
[1753722222149,0.71,187.23,187.22,64.0]
[1753722222523,6.0510244,187.23,187.22,38.0]
[1753722222735,16.62060239,187.23,187.15,22.12796054]
[1753722222943,10.56957799,187.21,187.16,38.02]